bitfinex/quotes_SOLUSD_20250212
["timestamp","ask_amount","ask_price","bid_price","bid_amount"]
[1739382945414,33.74005885,195.48,195.47,0.063]
[1739382946823,33.86554885,195.48,195.47,0.063]
[1739382948735,34.11652885,195.48,195.47,0.063]
[1739382950340,34.11652885,195.48,195.39,0.063]
[1739382950341,0.12549,195.42,195.39,0.063]
[1739382950654,29.13605885,195.4,195.39,0.063]
[1739382951337,54.22113917,195.4,195.39,0.063]
[1739382951845,52.97015917,195.4,195.39,0.063]
[1739382952246,37.12045885,195.4,195.39,0.063]
[1739382952450,41.72635885,195.4,195.39,0.063]
[1739382953443,57.45056917,195.4,195.39,0.063]
[1739382953817,41.72635885,195.4,195.39,0.063]
[1739382954016,57.45056917,195.4,195.39,0.063]
[1739382954517,57.57605917,195.4,195.39,0.063]
[1739382954912,57.82703917,195.4,195.39,0.063]
[1739382955850,33.74195885,195.4,195.39,0.063]
[1739382961538,8.16519,195.46,195.39,0.063]
[1739382961539,4.6057,195.41,195.39,0.063]
[1739382962443,20.32991032,195.41,195.39,0.063]
[1739382962619,15.72421032,195.4,195.39,0.063]
[1739382963018,29.13605885,195.4,195.39,0.063]
[1739382963226,33.74195885,195.4,195.39,0.063]
[1739382963548,15.72421032,195.42,195.39,0.063]
[1739382965151,4.6057,195.41,195.39,0.063]
[1739382967849,20.32991032,195.41,195.39,0.063]
[1739382968848,82.3,195.42,195.39,0.063]
[1739382968849,33.74195885,195.4,195.39,0.063]
[1739382969543,49.59165917,195.4,195.39,0.063]
[1739382969745,13.41184853,195.39,195.37,0.063]
[1739382969944,29.13605885,195.38,195.37,0.063]
[1739382970951,33.74245885,195.38,195.37,0.063]
[1739382971448,20.0,195.35,195.33,0.063]
[1739382971655,29.13605885,195.34,195.33,0.063]
[1739382972939,33.74335885,195.34,195.33,0.063]
[1739382973757,20.0,195.3,195.23,0.75]
[1739382973961,15.72421032,195.25,195.23,0.75]
[1739382974560,15.72421032,195.26,195.23,0.75]
[1739382975651,15.72421032,195.29,195.23,16.47421032]
[1739382975962,15.72421032,195.3,195.24,15.72421032]
[1739382976451,15.72421032,195.29,195.23,21.59611032]
[1739382978251,15.72421032,195.3,195.23,21.59611032]
[1739382978556,82.3,195.33,195.28,15.72421032]
[1739382979129,82.3,195.33,195.29,15.72421032]
[1739382979555,33.74315885,195.35,195.28,15.72421032]
[1739382980449,20.33111032,195.36,195.3,15.72421032]
[1739382981027,15.72421032,195.38,195.32,15.72421032]
[1739382981247,98.02421032,195.42,195.35,15.72421032]
[1739382981446,82.3,195.42,195.37,15.72421032]
[1739382981851,20.32961032,195.43,195.37,15.72421032]
[1739382982642,29.13605885,195.44,195.37,20.84241032]
[1739382982842,29.13605885,195.44,195.38,15.72421032]
[1739382983440,29.13605885,195.44,195.37,20.84241032]
[1739382983750,15.72421032,195.44,195.37,20.84241032]
[1739382984053,20.32911032,195.45,195.38,15.72421032]
[1739382984356,15.72421032,195.43,195.37,5.1182]
[1739382984533,15.72421032,195.41,195.37,5.1182]
[1739382984738,15.72421032,195.4,195.35,1.5174]
[1739382984932,15.72421032,195.37,195.32,5.1195]
[1739382985151,15.72421032,195.35,195.3,6.6988]
[1739382985452,15.72421032,195.34,195.3,1.5788]
[1739382987270,15.72421032,195.33,195.3,1.5788]
[1739382987439,15.72421032,195.34,195.3,1.5788]
[1739382987757,15.72421032,195.35,195.3,1.5788]
[1739382987956,15.72421032,195.34,195.3,1.5788]
[1739382988335,15.72421032,195.33,195.27,21.88511032]
[1739382988537,15.72421032,195.33,195.28,5.1208]
[1739382989752,15.72421032,195.32,195.28,5.1208]
[1739382990061,15.72421032,195.33,195.28,4.6208]
[1739382990438,15.72421032,195.32,195.28,4.6208]
[1739382991062,15.72421032,195.32,195.27,5.1211]
[1739382991551,15.72421032,195.31,195.27,5.1211]
[1739382991958,15.72421032,195.32,195.27,5.1211]
[1739382992258,15.72421032,195.31,195.27,5.1211]
[1739382992468,15.72421032,195.31,195.25,1.5806]
[1739382992843,15.72421032,195.31,195.25,6.7022]
[1739382993043,20.33201032,195.32,195.25,22.42641032]
[1739382993257,82.3,195.37,195.27,15.72421032]
[1739382993258,15.72421032,195.34,195.27,15.72421032]
[1739382993484,20.33101032,195.36,195.3,15.72421032]
[1739382993654,13.41184853,195.35,195.3,15.72421032]
[1739382994351,13.41184853,195.35,195.29,15.72421032]
[1739382994551,33.74315885,195.35,195.29,15.72421032]
[1739382995146,18.01894853,195.35,195.29,15.72421032]
[1739382995565,33.74315885,195.35,195.28,20.84491032]
[1739382996472,15.72421032,195.34,195.28,20.84491032]
[1739382996765,15.72421032,195.32,195.26,20.84541032]
[1739382996947,15.72421032,195.31,195.26,5.1212]
[1739382997161,15.72421032,195.3,195.25,1.5806]
[1739382998150,29.13605885,195.31,195.25,1.5806]
[1739382998461,33.74405885,195.31,195.25,1.5806]
[1739382999167,33.74405885,195.31,195.25,17.30481032]
[1739382999763,15.72421032,195.3,195.25,1.5806]
[1739383000670,20.33251032,195.3,195.24,5.1848]
[1739383000870,15.72421032,195.29,195.24,5.1848]
[1739383001075,15.72421032,195.28,195.24,0.063]
[1739383001374,15.72421032,195.26,195.24,0.063]
[1739383003060,15.72421032,195.27,195.24,0.063]
[1739383003264,29.13605885,195.26,195.24,0.063]
[1739383003771,4.6089,195.28,195.24,0.063]
[1739383003772,20.33311032,195.28,195.24,0.063]
[1739383003966,98.02421032,195.29,195.24,0.063]
[1739383005650,15.72421032,195.29,195.24,0.063]
[1739383006265,20.33271032,195.29,195.24,0.063]
[1739383008072,15.72421032,195.32,195.25,15.72421032]
[1739383008255,82.3,195.31,195.25,15.72421032]
[1739383008455,15.72421032,195.3,195.24,15.78721032]
[1739383008956,15.72421032,195.3,195.24,0.063]
[1739383009163,15.72421032,195.29,195.24,0.063]
[1739383010056,15.72421032,195.26,195.24,0.063]
[1739383010678,82.3,195.28,195.24,0.063]
[1739383011374,15.72421032,195.26,195.24,0.063]
[1739383011579,15.72421032,195.27,195.24,0.063]
[1739383011760,102.63301032,195.28,195.24,0.063]
[1739383012886,82.3,195.28,195.24,0.063]
[1739383013061,82.3,195.28,195.24,15.78721032]
[1739383013262,82.3,195.28,195.24,0.063]
[1739383014482,98.05421032,195.29,195.24,0.063]
[1739383014880,82.33,195.29,195.24,0.063]
[1739383015562,82.33,195.29,195.26,15.72421032]
[1739383016987,82.33,195.29,195.25,15.72421032]
[1739383017787,0.03,195.29,195.26,15.72421032]
[1739383021777,0.03,195.29,195.24,0.063]
[1739383021778,0.03,195.29,195.24,20.90911032]
[1739383023105,0.03,195.29,195.26,15.72421032]
[1739383023270,0.03,195.29,195.27,15.72421032]
[1739383023670,0.03,195.29,195.26,15.72421032]
[1739383024907,0.03,195.29,195.26,20.84551032]
[1739383026590,0.03,195.29,195.25,15.72421032]
[1739383026788,0.03,195.29,195.26,15.72421032]
[1739383026992,15.75421032,195.29,195.24,0.063]
[1739383027374,15.72421032,195.25,195.24,0.063]
[1739383027598,29.13605885,195.25,195.24,0.063]
[1739383028484,33.74545885,195.25,195.24,0.063]
[1739383031194,33.87094885,195.25,195.24,0.063]
[1739383031389,34.24741885,195.25,195.24,0.063]
[1739383032100,42.07671885,195.25,195.24,0.063]
[1739383032901,34.24771885,195.24,195.23,0.75]
[1739383036105,13.41184853,195.2,195.19,0.063]
[1739383036404,29.13605885,195.2,195.19,0.063]
[1739383037181,33.74665885,195.2,195.19,0.063]
[1739383039215,18.02244853,195.2,195.19,0.063]
[1739383039709,33.74665885,195.2,195.19,0.063]
[1739383039915,29.13605885,195.2,195.19,0.063]
[1739383040084,13.41184853,195.2,195.19,0.063]
[1739383040677,20.33461032,195.21,195.19,0.063]
[1739383040678,15.72421032,195.21,195.19,0.063]
[1739383040879,20.33421032,195.23,195.19,0.063]
[1739383041288,13.41184853,195.22,195.19,0.063]
[1739383042004,15.72421032,195.27,195.2,15.72421032]
[1739383042393,29.13605885,195.26,195.19,15.78721032]
[1739383043206,15.72421032,195.23,195.19,0.063]
[1739383043584,15.72421032,195.22,195.19,0.063]
[1739383044008,29.13605885,195.21,195.19,0.063]
[1739383044189,29.13605885,195.2,195.19,0.063]
[1739383045103,49.59635917,195.2,195.19,0.063]
[1739383045410,49.97282917,195.2,195.19,0.063]
[1739383045901,33.74665885,195.2,195.19,0.063]
[1739383046704,86.9401,195.23,195.19,0.063]
[1739383046910,0.03,195.23,195.19,15.78721032]
[1739383047796,0.03,195.23,195.19,0.063]
[1739383048201,0.03,195.23,195.19,15.78721032]
[1739383048399,15.72421032,195.21,195.19,0.063]
[1739383050213,15.72421032,195.2,195.19,0.063]
[1739383050798,29.13605885,195.2,195.19,0.063]
[1739383051389,15.72421032,195.2,195.19,0.063]
[1739383053431,29.13605885,195.2,195.19,0.063]
[1739383054111,15.72421032,195.21,195.19,0.063]
[1739383054940,111.43605885,195.2,195.19,0.063]
[1739383055106,127.28575917,195.2,195.19,0.063]
[1739383055511,131.89635917,195.2,195.19,0.063]
[1739383055905,132.02184917,195.2,195.19,0.063]
[1739383056404,49.97282917,195.2,195.19,0.063]
[1739383057296,0.12549,195.16,195.06,20.85061032]
[1739383057500,15.72421032,195.12,195.06,20.85061032]
[1739383057699,15.72421032,195.12,195.06,5.1264]
[1739383058112,18.02424853,195.13,195.04,1.685]
[1739383058113,15.72421032,195.09,195.04,1.685]
[1739383058296,29.13605885,195.07,195.04,0.063]
[1739383059011,6.05740487,195.07,195.04,0.063]
[1739383059724,15.72421032,195.06,195.04,0.063]
[1739383062221,15.72421032,195.05,195.04,0.063]
[1739383062609,15.72421032,195.06,195.04,0.063]
[1739383062823,15.72421032,195.07,195.04,0.063]
[1739383063007,15.72421032,195.06,195.04,0.063]
[1739383063602,15.72421032,195.09,195.04,0.063]
[1739383064220,15.72421032,195.11,195.04,15.78721032]
[1739383064420,15.72421032,195.11,195.05,15.72421032]
[1739383064614,82.3,195.12,195.06,15.72421032]
[1739383065107,15.72421032,195.08,195.04,0.063]
[1739383065607,15.72421032,195.06,195.04,0.063]
[1739383066142,15.72421032,195.07,195.04,0.063]
[1739383066553,15.72421032,195.08,195.04,0.063]
[1739383066862,82.42549,195.12,195.05,15.72421032]
[1739383066863,15.72421032,195.11,195.05,15.72421032]
[1739383067165,15.72421032,195.11,195.04,15.78721032]
[1739383067330,15.72421032,195.11,195.05,15.72421032]
[1739383067654,98.02421032,195.12,195.05,15.72421032]
[1739383067951,98.02421032,195.12,195.06,15.72421032]
[1739383068129,82.3,195.12,195.06,15.72421032]
[1739383068332,98.02421032,195.12,195.06,15.72421032]
[1739383069047,15.72421032,195.13,195.06,15.72421032]
[1739383069261,15.72421032,195.13,195.07,5.1263]
[1739383070539,15.72421032,195.14,195.07,15.72421032]
[1739383070837,20.33611032,195.15,195.08,15.72421032]
[1739383071142,15.72421032,195.14,195.08,15.72421032]
[1739383071657,15.72421032,195.13,195.06,15.72421032]
[1739383071837,15.72421032,195.13,195.07,20.85051032]
[1739383072042,15.72421032,195.15,195.08,15.72421032]
[1739383072657,15.72421032,195.14,195.07,20.85051032]
[1739383073453,15.72421032,195.12,195.07,5.1263]
[1739383073850,15.72421032,195.11,195.07,5.1263]
[1739383074041,15.72421032,195.11,195.05,5.1266]
[1739383074236,15.72421032,195.1,195.04,5.19]
[1739383074739,15.72421032,195.07,195.04,0.063]
[1739383075136,15.72421032,195.09,195.04,0.063]
[1739383075337,4.6134,195.08,195.04,0.063]
[1739383075527,15.72421032,195.07,195.04,0.063]
[1739383077229,15.72421032,195.09,195.04,0.063]
[1739383078442,15.72421032,195.08,195.04,0.063]
[1739383079633,40.33741032,195.1,195.04,0.063]
[1739383081969,15.72421032,195.09,195.04,0.063]
[1739383083058,40.33741032,195.1,195.04,0.063]
[1739383083663,15.72421032,195.12,195.05,15.72421032]
[1739383083962,15.72421032,195.16,195.09,15.72421032]
[1739383084573,20.33551032,195.17,195.11,15.72421032]
[1739383085061,20.33551032,195.17,195.1,15.72421032]
[1739383085568,20.33551032,195.17,195.1,20.84971032]
[1739383086143,15.72421032,195.16,195.1,5.1255]
[1739383086762,4.6113,195.17,195.12,15.72421032]
[1739383087068,20.33461032,195.21,195.14,15.72421032]
[1739383088067,20.33461032,195.21,195.15,15.72421032]
[1739383088242,4.6102,195.22,195.16,15.72421032]
[1739383089387,0.03,195.23,195.18,15.72421032]
[1739383089557,0.03,195.23,195.2,15.72421032]
[1739383089949,0.03,195.23,195.22,15.72421032]
[1739383090977,0.03,195.23,195.21,15.72421032]
[1739383092370,0.03,195.23,195.2,15.72421032]
[1739383095152,0.03,195.23,195.21,15.72421032]
[1739383095360,0.03,195.23,195.2,15.72421032]
[1739383097957,0.03,195.23,195.21,15.72421032]
[1739383098156,0.03,195.23,195.22,15.72421032]
[1739383098361,0.03,195.23,195.21,15.72421032]
[1739383099390,0.03,195.23,195.22,15.72421032]
[1739383099571,0.03,195.23,195.21,15.72421032]
[1739383103483,0.03,195.23,195.22,15.84970032]
[1739383104871,0.03,195.23,195.22,20.97210032]
[1739383105083,0.03,195.23,195.22,21.09759032]
[1739383105793,0.03,195.23,195.22,15.46024431]
[1739383105986,0.03,195.23,195.22,17.27262431]
[1739383106189,0.03,195.23,195.22,18.34797195]
[1739383106683,0.03,195.23,195.22,19.34797195]
[1739383106871,0.03,195.23,195.22,33.75982048]
[1739383107268,0.03,195.23,195.22,19.34797195]
[1739383107469,0.03,195.23,195.22,17.27262431]
[1739383107695,0.03,195.23,195.22,18.27262431]
[1739383108078,0.03,195.23,195.22,17.27262431]
[1739383108468,0.03,195.23,195.22,18.34796397]
[1739383108669,0.03,195.23,195.22,19.34796397]
[1739383108869,0.03,195.23,195.22,17.27262431]
[1739383110300,0.03,195.23,195.22,18.27262431]
[1739383110602,0.03,195.23,195.22,17.27262431]
[1739383111907,0.03,195.23,195.22,18.27262431]
[1739383113082,0.03,195.23,195.22,17.27262431]
[1739383113296,0.03,195.23,195.22,32.68447284]
[1739383113495,0.03,195.29,195.26,0.12549]
[1739383113706,0.03,195.29,195.28,10.08686431]
[1739383115087,0.03,195.29,195.27,15.20766431]
[1739383115294,0.03,195.29,195.28,10.08686431]
[1739383115791,0.03,195.29,195.28,10.21235431]
[1739383116311,0.03,195.29,195.28,15.33315431]
[1739383121993,0.03,195.29,195.27,10.08686431]
[1739383122307,0.03,195.29,195.26,10.08686431]
[1739383123202,0.03,195.29,195.28,10.08686431]
[1739383126811,0.03,195.29,195.27,10.08686431]
[1739383127520,0.03,195.29,195.26,15.20816431]
[1739383127719,0.03,195.29,195.25,5.1216]
[1739383128619,0.03,195.29,195.24,5.24729]
[1739383128800,0.03,195.29,195.24,15.33415431]
[1739383130632,0.03,195.29,195.25,10.08686431]
[1739383130829,0.03,195.29,195.28,10.21235431]
[1739383131605,0.03,195.29,195.28,10.58882431]
[1739383132139,0.03,195.29,195.28,11.66378015]
[1739383132937,0.03,195.29,195.28,16.78458015]
[1739383133144,0.03,195.3,195.29,10.46333431]
[1739383134029,0.03,195.3,195.29,15.58383431]
[1739383136822,0.03,195.3,195.29,16.78429444]
[1739383137022,0.03,195.3,195.29,15.70932431]
[1739383144537,0.03,195.3,195.29,15.77232431]
[1739383147557,0.03,195.3,195.29,71.53163008]
[1739383147718,0.03,195.33,195.32,30.46333431]
[1739383148958,0.03,195.33,195.32,35.58313431]
[1739383156949,0.03,195.33,195.32,36.78345525]
[1739383162651,0.03,195.33,195.32,35.70862431]
[1739383171261,0.03,195.33,195.3,42.41045724]
[1739383171262,0.03,195.33,195.3,10.14986431]
[1739383171471,0.03,195.33,195.3,0.063]
[1739383171660,0.03,195.33,195.3,0.18849]
[1739383173172,0.03,195.33,195.32,10.21235431]
[1739383173552,0.03,195.33,195.32,15.33215431]
[1739383175257,0.03,195.33,195.3,15.26986431]
[1739383175457,0.03,195.33,195.31,10.08686431]
[1739383175651,0.03,195.33,195.32,10.08686431]
[1739383177161,0.03,195.33,195.32,15.33215431]
[1739383178271,0.03,195.33,195.32,15.45764431]
[1739383178477,0.03,195.33,195.32,15.70862431]
[1739383181881,0.03,195.33,195.32,30.12047284]
[1739383183901,6.6127,195.4,195.33,0.50196]
[1739383184070,6.6127,195.4,195.38,10.08686431]
[1739383186896,1.5211,195.41,195.39,10.08686431]
[1739383187683,0.03,195.43,195.4,15.20456431]
[1739383187872,0.03,195.43,195.41,10.08686431]
[1739383188486,0.03,195.43,195.4,15.20456431]
[1739383189573,0.03,195.43,195.41,0.12549]
[1739383190376,0.03,195.43,195.41,5.24269]
[1739383190798,0.03,195.43,195.41,15.32955431]
[1739383190981,0.03,195.43,195.42,10.21235431]
[1739383192798,0.03,195.43,195.42,10.08686431]
[1739383193001,0.03,195.43,195.42,15.20396431]
[1739383193377,0.03,195.43,195.42,5.1171]
[1739383193785,0.03,195.43,195.39,10.08686431]
[1739383194082,0.03,195.43,195.38,10.08686431]
[1739383194982,0.03,195.43,195.38,15.20496431]
[1739383196101,0.03,195.43,195.4,10.08686431]
[1739383196602,0.03,195.43,195.41,10.08686431]
[1739383197801,0.03,195.43,195.41,15.20406431]
[1739383198202,0.03,195.43,195.42,10.08686431]
[1739383198383,0.03,195.43,195.42,10.33784431]
[1739383198983,0.03,195.43,195.42,10.58882431]
[1739383200205,0.03,195.43,195.42,15.70592431]
[1739383200406,0.03,195.43,195.42,29.11777284]
[1739383200710,0.03,195.46,195.45,33.91380853]
[1739383200910,0.03,195.46,195.45,46.00067284]
[1739383201414,0.0001,195.46,195.45,44.00067284]
[1739383201592,0.0001,195.46,195.45,31.58882431]
[1739383201904,0.0001,195.46,195.45,62.38882431]
[1739383202208,0.0001,195.46,195.45,78.43797284]
[1739383202397,0.0001,195.46,195.45,83.55427284]
[1739383202918,0.03,195.49,195.48,14.91380853]
[1739383203084,0.0001,195.5,195.49,2.50196]
[1739383203291,0.03,195.53,195.52,34.91380853]
[1739383203519,0.03,195.53,195.52,30.58882431]
[1739383204193,0.03,195.53,195.52,35.70332431]
[1739383205389,0.03,195.53,195.52,50.11517284]
[1739383205587,0.03,195.53,195.52,35.32685431]
[1739383205909,0.03,195.53,195.52,35.70332431]
[1739383206099,0.03,195.55,195.52,35.70332431]
[1739383206100,0.03,195.55,195.54,2.37647]
[1739383206303,0.03,195.58,195.57,22.50196]
[1739383206608,0.03,195.63,195.6,15.91380853]
[1739383206993,0.03,195.63,195.62,20.25098]
[1739383207192,0.03,195.63,195.62,30.33784431]
[1739383207399,0.03,195.63,195.62,35.44974431]
[1739383207593,0.03,195.63,195.62,35.32425431]
[1739383207909,0.03,195.63,195.62,25.1119]
[1739383208106,0.03,195.63,195.62,5.1119]
[1739383208606,10.11686431,195.63,195.57,10.08686431]
[1739383208791,10.11686431,195.63,195.57,5.1132]
[1739383209208,0.03,195.63,195.6,10.08686431]
[1739383209588,0.03,195.63,195.61,15.70314307]
[1739383209990,0.03,195.63,195.6,15.70314307]
[1739383210513,0.03,195.63,195.61,15.70314307]
[1739383211497,0.03,195.63,195.58,15.70314307]
[1739383211697,15.70314307,195.61,195.57,5.1132]
[1739383212104,22.29084307,195.62,195.57,5.1132]
[1739383212622,6.5877,195.62,195.58,15.70314307]
[1739383212802,6.5877,195.62,195.6,15.70314307]
[1739383213401,0.03,195.63,195.61,15.70314307]
[1739383213596,0.03,195.63,195.62,15.70314307]
[1739383213798,0.03,195.63,195.62,15.82863307]
[1739383214003,0.03,195.63,195.62,15.95412307]
[1739383214916,0.03,195.63,195.62,21.06602307]
[1739383215696,0.03,195.63,195.62,5.1119]
[1739383216091,0.03,195.63,195.62,21.19151307]
[1739383216312,0.03,195.63,195.62,35.7288516]
[1739383216526,0.03,195.71,195.67,0.12549]
[1739383216717,0.03,195.71,195.7,15.70314307]
[1739383216921,0.03,195.71,195.68,15.70314307]
[1739383217232,0.03,195.71,195.68,20.81324307]
[1739383217614,0.03,195.71,195.68,5.1101]
[1739383217818,15.70314307,195.69,195.63,96.50314307]
[1739383218014,15.70314307,195.68,195.61,15.70314307]
[1739383218234,15.70314307,195.68,195.62,15.70314307]
[1739383218539,21.78864307,195.69,195.62,15.70314307]
[1739383218837,1.658,195.68,195.59,17.8944]
[1739383219036,1.658,195.68,195.6,0.12549]
[1739383219230,1.658,195.68,195.59,17.8944]
[1739383219231,6.2573,195.68,195.59,5.1127]
[1739383219437,95.71184853,195.67,195.56,21.38399946]
[1739383219738,15.70314307,195.61,195.56,21.38399946]
[1739383219943,15.70314307,195.59,195.56,21.38399946]
[1739383220162,15.70314307,195.6,195.56,21.38399946]
[1739383220757,15.70314307,195.58,195.56,21.38399946]
[1739383220961,17.22624307,195.58,195.53,5.1142]
[1739383221858,15.70314307,195.57,195.51,5.1147]
[1739383223356,15.70314307,195.56,195.51,5.1147]
[1739383223553,15.70314307,195.56,195.49,15.82863307]
[1739383223860,15.70314307,195.56,195.5,5.115]
[1739383224658,22.32094307,195.54,195.47,33.60804307]
[1739383224858,15.70314307,195.53,195.47,5.1158]
[1739383225063,15.70314307,195.52,195.47,5.1158]
[1739383225781,15.70314307,195.51,195.47,5.1158]
[1739383225946,15.70314307,195.49,195.45,5.1793]
[1739383226147,6.6178,195.54,195.45,5.1793]
[1739383226148,15.70314307,195.51,195.45,5.1793]
[1739383226560,15.70314307,195.53,195.46,15.70314307]
[1739383226870,6.6178,195.54,195.48,15.70314307]
[1739383227644,22.32094307,195.54,195.47,15.70314307]
[1739383227946,15.70314307,195.49,195.45,0.063]
[1739383228253,1.5297,195.5,195.45,20.88234307]
[1739383228674,1.5297,195.5,195.45,5.1792]
[1739383229383,6.6478,195.54,195.49,15.70314307]
[1739383229562,0.03,195.54,195.53,15.70314307]
[1739383230167,0.03,195.54,195.53,20.81744307]
[1739383230386,0.03,195.54,195.53,21.06842307]
[1739383230683,0.03,195.54,195.53,22.14206314]
[1739383230985,0.03,195.54,195.53,21.06842307]
[1739383231182,0.03,195.54,195.52,15.70314307]
[1739383231486,0.03,195.54,195.49,15.70314307]
[1739383231690,0.03,195.54,195.48,15.82863307]
[1739383231991,15.70314307,195.53,195.47,5.1158]
[1739383232591,15.70314307,195.53,195.45,1.26253426]
[1739383232592,15.70314307,195.51,195.45,20.88224307]
[1739383232886,15.70314307,195.51,195.45,5.1791]
[1739383233177,15.70314307,195.53,195.46,15.70314307]
[1739383233382,4.6327,195.54,195.48,15.70314307]
[1739383233689,0.03,195.54,195.49,15.70314307]
[1739383234560,0.03,195.54,195.5,15.70314307]
[1739383235206,0.03,195.54,195.51,15.70314307]
[1739383235382,0.03,195.54,195.52,15.70314307]
[1739383235682,0.03,195.54,195.51,15.70314307]
[1739383235862,0.03,195.54,195.5,15.70314307]
[1739383236066,15.73314307,195.54,195.47,20.81874307]
[1739383236280,0.03,195.54,195.48,15.70314307]
[1739383236469,0.03,195.54,195.49,15.70314307]
[1739383236958,0.03,195.54,195.48,15.70314307]
[1739383237160,0.03,195.54,195.48,20.81864307]
[1739383237357,0.03,195.54,195.49,15.70314307]
[1739383237582,0.03,195.54,195.48,20.81864307]
[1739383237785,15.73314307,195.54,195.48,15.70314307]
[1739383237989,15.70314307,195.49,195.45,0.063]
[1739383238297,15.70314307,195.47,195.45,0.063]
[1739383239473,13.44184853,195.54,195.45,0.063]
[1739383239474,15.70314307,195.46,195.45,0.063]
[1739383239674,25.18626693,195.46,195.45,0.063]
[1739383239872,31.26926693,195.46,195.45,0.063]
[1739383240785,35.87376693,195.46,195.45,0.063]
[1739383240997,10.6875,195.46,195.45,0.063]
[1739383241173,6.083,195.46,195.45,0.063]
[1739383241888,82.3,195.49,195.45,0.063]
[1739383242061,6.2142,195.51,195.48,25.18626693]
[1739383242386,0.03,195.54,195.5,25.18626693]
[1739383243289,0.03,195.54,195.53,25.18626693]
[1739383244079,0.03,195.54,195.52,25.18626693]
[1739383244601,0.03,195.54,195.49,30.30156693]
[1739383247796,25.18626693,195.47,195.45,0.063]
[1739383248198,25.18626693,195.46,195.45,0.063]
[1739383251405,29.79076693,195.46,195.45,0.063]
[1739383251795,43.20261546,195.46,195.45,0.063]
[1739383252507,43.32810546,195.46,195.45,0.063]
[1739383253406,29.79076693,195.46,195.45,0.063]
[1739383253584,4.6045,195.46,195.45,0.063]
[1739383254115,29.79076693,195.46,195.45,0.063]
[1739383255110,43.32810546,195.46,195.45,0.063]
[1739383255403,43.45359546,195.46,195.45,0.063]
[1739383255900,43.32810546,195.46,195.45,0.063]
[1739383256884,42.66368016,195.46,195.45,0.063]
[1739383257103,42.91466016,195.46,195.45,0.063]
[1739383258206,42.66368016,195.46,195.45,0.063]
[1739383258709,42.53819016,195.46,195.45,0.063]
[1739383259416,29.12634163,195.46,195.45,0.063]
[1739383259703,3.9400747,195.46,195.45,0.063]
[1739383260281,29.12634163,195.46,195.45,0.063]
[1739383261497,42.53819016,195.46,195.45,0.063]
[1739383263915,42.91466016,195.46,195.45,0.063]
[1739383264213,25.18626693,195.37,195.33,0.063]
[1739383264789,25.18626693,195.39,195.33,0.063]
[1739383265506,25.18626693,195.38,195.33,0.063]
[1739383265707,25.18626693,195.39,195.33,5.1824]
[1739383266101,4.606,195.4,195.36,25.18626693]
[1739383266501,4.606,195.4,195.35,25.18626693]
[1739383266709,25.18626693,195.42,195.35,25.18626693]
[1739383266911,4.6057,195.41,195.35,25.18626693]
[1739383267303,4.6057,195.41,195.36,25.18626693]
[1739383267713,86.9053,195.43,195.38,25.18626693]
[1739383269115,25.18626693,195.42,195.36,5.1185]
[1739383269326,25.18626693,195.41,195.34,30.30526693]
[1739383269500,25.18626693,195.39,195.34,5.119]
[1739383270197,25.18626693,195.4,195.34,5.119]
[1739383270417,29.79196693,195.41,195.35,25.18626693]
[1739383270600,4.6057,195.41,195.35,25.18626693]
[1739383271128,25.18626693,195.4,195.34,30.30526693]
[1739383271419,25.18626693,195.39,195.34,5.119]
[1739383272028,25.18626693,195.38,195.34,5.119]
[1739383272229,25.18626693,195.39,195.34,5.119]
[1739383272399,25.18626693,195.37,195.34,5.119]
[1739383272736,25.18626693,195.37,195.33,0.063]
[1739383272919,25.18626693,195.36,195.33,0.063]
[1739383273101,25.18626693,195.37,195.33,0.063]
[1739383273609,29.79276693,195.38,195.33,0.063]
[1739383273801,4.6065,195.38,195.33,25.24926693]